bitfinex/quotes_SOLUSD_20241001
["timestamp","ask_amount","ask_price","bid_price","bid_amount"]
[1727800232990,1.96976,148.37,148.36,25.83779212]
[1727800233185,1.96976,148.39,148.38,6.7394]
[1727800233388,1.96976,148.42,148.41,6.738]
[1727800234479,1.96976,148.4,148.39,6.7389]
[1727800234684,1.96976,148.42,148.41,6.738]
[1727800235204,1.96976,148.44,148.43,6.7371]
[1727800235705,22.8707,148.51,148.45,6.7362]
[1727800235706,1.96976,148.46,148.45,6.7362]
[1727800236885,1.96976,148.48,148.47,6.7353]
[1727800237102,12.9399,148.55,148.51,6.7335]
[1727800237103,1.96976,148.52,148.51,6.7335]
[1727800237689,1.96976,148.54,148.53,6.7326]
[1727800238092,1.96976,148.54,148.52,6.733]
[1727800238292,1.96976,148.56,148.55,6.7317]
[1727800238486,1.96976,148.58,148.54,19.09749212]
[1727800238681,1.96976,148.58,148.57,6.7308]
[1727800239510,1.96976,148.58,148.56,6.7312]
[1727800239695,1.96976,148.58,148.57,6.7308]
[1727800240387,1.96976,148.6,148.57,30.507684]
[1727800240586,15.5359,148.69,148.61,6.729]
[1727800240587,1.96976,148.62,148.61,6.729]
[1727800240808,6.2237,148.67,148.63,6.7281]
[1727800240809,1.96976,148.64,148.63,6.7281]
[1727800241720,1.96976,148.66,148.65,6.7272]
[1727800242408,1.96976,148.66,148.64,6.7276]
[1727800242585,1.96976,148.66,148.65,6.7272]
[1727800243706,1.96976,148.69,148.68,6.7258]
[1727800244318,1.96976,148.67,148.62,15.7144]
[1727800244609,1.96976,148.65,148.62,15.7144]
[1727800244810,1.96976,148.62,148.59,20.0]
[1727800244996,1.96976,148.64,148.58,46.26195432]
[1727800245196,1.96976,148.62,148.58,46.26195432]
[1727800245405,1.96976,148.62,148.58,15.7631]
[1727800245716,0.7077225,148.71,148.62,6.7284]
[1727800245717,1.96976,148.64,148.62,6.7284]
[1727800246086,1.96976,148.64,148.58,15.7631]
[1727800246299,1.96976,148.62,148.6,6.7293]
[1727800247015,1.96976,148.62,148.61,6.729]
[1727800247306,1.96976,148.67,148.66,6.7266]
[1727800247512,1.96976,148.67,148.61,20.0]
[1727800247513,1.96976,148.69,148.64,30.49885432]
[1727800247691,2.6774825,148.71,148.7,6.7249]
[1727800250606,0.7077225,148.71,148.7,81.00063832]
[1727800251003,1.96976,148.74,148.7,81.00063832]
[1727800251208,21.2662,148.82,148.74,23.776884]
[1727800251209,1.96976,148.76,148.74,23.776884]
[1727800252108,1.96976,148.76,148.75,6.7226]
[1727800252593,1.96976,148.74,148.7,30.49885432]
[1727800252914,1.96976,148.74,148.72,6.7239]
[1727800253092,1.96976,148.74,148.73,1.34434544]
[1727800253403,1.96976,148.74,148.7,30.49885432]
[1727800253805,1.96976,148.74,148.71,1.34434364]
[1727800254118,1.96976,148.74,148.72,6.7239]
[1727800254329,1.96976,148.72,148.63,22.3908]
[1727800254612,1.96976,148.68,148.67,6.7262]
[1727800254996,1.96976,148.68,148.65,6.7267]
[1727800255501,1.96976,148.68,148.63,52.88965432]
[1727800255695,1.96976,148.68,148.67,6.7263]
[1727800255908,1.96976,148.68,148.63,46.39695432]
[1727800256096,1.96976,148.68,148.65,6.7271]
[1727800256400,1.96976,148.68,148.63,46.39695432]
[1727800256401,1.96976,148.66,148.64,6.7274]
[1727800256600,1.96976,148.66,148.65,6.7272]
[1727800256915,1.96976,148.68,148.66,6.7267]
[1727800257222,1.96976,148.68,148.67,6.7263]
[1727800258217,6.333,148.73,148.64,20.0]
[1727800258218,1.96976,148.66,148.65,6.7267]
[1727800258703,1.96976,148.68,148.67,6.7263]
[1727800259900,1.96976,148.68,148.65,23.776884]
[1727800260101,1.96976,148.68,148.66,6.7266]
[1727800260899,1.96976,148.66,148.61,20.0]
[1727800261095,1.96976,148.68,148.66,6.7263]
[1727800261396,1.96976,148.68,148.61,20.0]
[1727800261397,1.96976,148.68,148.67,6.7263]
[1727800261806,1.96976,148.68,148.66,6.7266]
[1727800262222,1.96976,148.68,148.67,6.7263]
[1727800262815,1.96976,148.66,148.6,55.21888726]
[1727800263117,1.96976,148.62,148.59,6.1282]
[1727800263327,1.96976,148.64,148.63,6.7281]
[1727800263534,1.96976,148.64,148.62,6.7284]
[1727800263819,1.96976,148.64,148.6,6.729]
[1727800264009,1.96976,148.64,148.62,6.7284]
[1727800264817,1.96976,148.61,148.59,20.0]
[1727800265008,1.96976,148.57,148.55,6.6176]
[1727800265319,1.96976,148.57,148.56,6.731]
[1727800265523,1.96976,148.6,148.59,6.7299]
[1727800265912,1.96976,148.6,148.55,6.6176]
[1727800265913,1.96976,148.58,148.57,6.7308]
[1727800266796,1.96976,148.58,148.54,45.88725432]
[1727800267002,1.96976,148.56,148.55,6.7317]
[1727800267202,6.0969,148.68,148.51,36.61935432]
[1727800267203,1.96976,148.54,148.53,6.7326]
[1727800267803,1.96976,148.56,148.51,6.1205]
[1727800268010,1.96976,148.56,148.55,6.7317]
[1727800268420,1.96976,148.59,148.58,6.7303]
[1727800269618,6.0969,148.68,148.58,6.7303]
[1727800269619,1.96976,148.61,148.6,6.7294]
[1727800270629,1.96976,148.63,148.62,6.7285]
[1727800273040,1.96976,148.62,148.6,20.0]
[1727800273328,1.96976,148.62,148.61,6.729]
[1727800274909,1.96976,148.62,148.61,50.505884]
[1727800275721,1.96976,148.62,148.61,30.505884]
[1727800276026,1.96976,148.62,148.61,50.505884]
[1727800277011,1.96976,148.62,148.61,26.729]
[1727800278330,1.96976,148.62,148.61,51.85117875]
[1727800278714,1.96976,148.64,148.62,43.776884]
[1727800278912,1.96976,148.64,148.63,8.07328315]
[1727800279130,1.96976,148.64,148.63,6.7281]
[1727800279331,1.96976,148.64,148.63,30.504984]
[1727800279535,1.96976,148.66,148.63,23.776884]
[1727800279722,1.96976,148.66,148.65,30.504084]
[1727800280034,1.96976,148.66,148.65,6.7272]
[1727800281031,1.96976,148.63,148.62,50.8058661]
[1727800281232,1.96976,148.63,148.62,7.0289821]
[1727800281532,6.5786,148.72,148.55,37.52783642]
[1727800281533,1.96976,148.61,148.55,37.52783642]
[1727800281731,1.96976,148.61,148.6,6.7294]
[1727800281942,1.96976,148.63,148.62,6.7285]
[1727800282318,1.96976,148.63,148.62,13.7574821]
[1727800282512,1.96976,148.63,148.62,50.505384]
[1727800283230,1.96976,148.63,148.62,6.7285]
[1727800283532,1.96976,148.59,148.58,6.7303]
[1727800285023,1.96976,148.59,148.57,6.7308]
[1727800285218,1.96976,148.58,148.54,21.9916]
[1727800285423,1.96976,148.58,148.57,6.7308]
[1727800285922,1.96976,148.56,148.55,6.7315]
[1727800286132,1.96976,148.53,148.5,21.4039]
[1727800286333,1.96976,148.55,148.54,6.7321]
[1727800286720,1.96976,148.57,148.56,6.7312]
[1727800287439,1.96976,148.57,148.56,30.508084]
[1727800289649,1.96976,148.57,148.56,6.7312]
[1727800290047,1.96976,148.59,148.58,6.7303]
[1727800290239,1.96976,148.59,148.58,8.07591347]
[1727800290636,1.96976,148.59,148.58,6.7303]
[1727800292854,1.96976,148.61,148.6,6.7294]
[1727800293057,1.96976,148.61,148.6,50.506284]
[1727800296532,1.96976,148.63,148.62,26.7285]
[1727800296747,1.96976,148.63,148.62,81.00423832]
[1727800297254,1.96976,148.63,148.62,50.505384]
[1727800297427,1.96976,148.63,148.62,6.7285]
[1727800298047,1.96976,148.63,148.62,26.7285]
[1727800298243,1.96976,148.63,148.62,6.7285]
[1727800300027,1.96976,148.6,148.59,30.49885432]
[1727800300229,1.96976,148.58,148.57,6.7308]
[1727800301343,1.96976,148.54,148.53,6.7326]
[1727800301543,1.96976,148.56,148.55,6.7317]
[1727800301934,1.96976,148.56,148.55,26.7317]
[1727800302555,1.96976,148.56,148.55,6.7317]
[1727800303537,1.96976,148.58,148.57,6.7308]
[1727800304155,1.96976,148.58,148.57,30.507684]
[1727800304355,22.8295,148.65,148.57,30.507684]
[1727800304356,1.96976,148.6,148.57,50.507684]
[1727800304570,1.96976,148.6,148.59,50.506784]
[1727800304751,1.96976,148.62,148.59,43.776884]
[1727800304946,1.96976,148.62,148.61,6.729]
[1727800305546,1.96976,148.58,148.52,6.6362]
[1727800305767,1.96976,148.54,148.53,6.7326]
[1727800307047,1.96976,148.54,148.53,30.509484]
[1727800307359,1.96976,148.54,148.53,6.7326]
[1727800307565,12.7684,148.59,148.47,30.49885432]
[1727800307566,1.96976,148.53,148.47,30.49885432]
[1727800307751,1.96976,148.53,148.52,6.733]
[1727800308344,1.96976,148.5,148.47,30.49885432]
[1727800308565,1.96976,148.5,148.49,6.7344]
[1727800309761,1.96976,148.5,148.49,50.511284]
[1727800311483,1.96976,148.5,148.49,6.7344]
[1727800312039,1.96976,148.5,148.49,26.7344]
[1727800312257,1.96976,148.52,148.51,6.7335]
[1727800312641,1.96976,148.52,148.44,35.23196234]
[1727800312971,1.96976,148.49,148.46,20.0]
[1727800313143,1.96976,148.49,148.48,6.7349]
[1727800314565,1.96976,148.49,148.48,30.511784]
[1727800315946,1.96976,148.49,148.48,50.511784]
[1727800316148,22.8637,148.59,148.48,50.511784]
[1727800316149,1.96976,148.51,148.5,50.510884]
[1727800316562,1.96976,148.51,148.5,30.510884]
[1727800316765,1.96976,148.51,148.5,50.510884]
[1727800320551,1.96976,148.51,148.5,26.734]
[1727800321357,1.96976,148.51,148.5,6.734]
[1727800322257,1.96976,148.51,148.5,30.510884]
[1727800322454,1.96976,148.51,148.5,50.510884]
[1727800322952,1.96976,148.53,148.52,30.509884]
[1727800323170,6.3077,148.63,148.53,43.776884]
[1727800323477,6.3077,148.63,148.59,6.7296]
[1727800323676,6.3077,148.63,148.55,23.776884]
[1727800323881,6.3077,148.63,148.55,6.7316]
[1727800324173,6.73,148.59,148.55,6.7315]
[1727800324358,16.8223,148.62,148.53,6.7322]
[1727800324561,6.7304,148.58,148.54,6.732]
[1727800324765,6.7312,148.57,148.5,15.611]
[1727800325073,6.7341,148.5,148.42,6.27]
[1727800325249,6.7336,148.51,148.46,6.7357]
[1727800325448,6.733,148.53,148.47,6.7351]
[1727800325649,6.7331,148.52,148.47,6.7351]
[1727800325849,6.7331,148.52,148.43,19.08700123]
[1727800326160,6.7327,148.53,148.48,6.7349]
[1727800326358,13.3203,148.55,148.5,6.7339]
[1727800326554,6.5882,148.55,148.45,19.08700123]
[1727800326779,6.5882,148.55,148.42,19.08700123]
[1727800327084,6.5882,148.55,148.43,20.0]
[1727800327377,6.5882,148.55,148.44,1.34676008]
[1727800328156,6.7331,148.52,148.47,6.7353]
[1727800328559,6.7331,148.52,148.34,0.8465799]
[1727800328560,23.776884,148.54,148.39,45.57632072]
[1727800328770,6.734,148.5,148.45,6.7361]
[1727800329659,23.776884,148.54,148.39,50.2039415]
[1727800329981,6.7326,148.53,148.48,6.7348]
[1727800330364,6.5882,148.55,148.49,1.34668419]
[1727800330564,6.7322,148.54,148.43,43.776884]
[1727800330764,6.7322,148.54,148.49,6.7344]
[1727800331281,6.7344,148.49,148.45,6.7361]
[1727800331459,6.7336,148.51,148.46,6.7356]
[1727800331666,6.7336,148.51,148.47,6.7352]
[1727800332072,6.7336,148.51,148.46,6.7357]
[1727800332382,6.734,148.5,148.43,23.776884]
[1727800332684,6.7327,148.53,148.48,6.7345]
[1727800333182,6.7332,148.52,148.47,6.7352]
[1727800334588,6.7332,148.52,148.48,8.08165189]
[1727800334773,6.5882,148.55,148.44,20.0]
[1727800334967,6.7345,148.49,148.44,26.7363]
[1727800335279,16.8314,148.54,148.44,26.7363]
[1727800335280,6.735,148.48,148.44,6.7363]
[1727800335675,16.8314,148.54,148.35,15.6106]
[1727800335676,6.1825,148.49,148.35,15.6106]
[1727800335865,23.776884,148.48,148.35,15.6106]
[1727800336180,6.1825,148.49,148.41,6.7379]
[1727800336383,6.1825,148.49,148.35,46.15072072]
[1727800336384,23.776884,148.48,148.35,46.15072072]
[1727800336759,23.776884,148.48,148.39,6.7388]
[1727800337081,6.7376,148.43,148.33,6.2441]
[1727800337284,23.776884,148.48,148.37,6.7395]
[1727800337475,23.776884,148.48,148.32,30.54012072]
[1727800337667,6.7376,148.42,148.36,6.7403]
[1727800338269,6.7371,148.44,148.37,6.7397]
[1727800338565,23.776884,148.48,148.39,6.7386]
[1727800338566,6.7363,148.45,148.39,6.7386]
[1727800338776,23.776884,148.48,148.39,6.7386]
[1727800338990,6.47687964,148.54,148.39,20.0]
[1727800339162,6.7354,148.47,148.39,43.776884]
[1727800339358,16.8325,148.53,148.39,43.776884]
[1727800339776,6.7352,148.48,148.43,6.7371]
[1727800339988,6.7344,148.49,148.43,6.7371]
[1727800340365,6.7349,148.48,148.39,20.0]
[1727800340659,16.8325,148.53,148.39,20.0]
[1727800340860,6.3378,148.54,148.39,20.0]
[1727800341077,6.7329,148.53,148.47,6.7351]
[1727800341259,6.3378,148.54,148.41,30.54012072]
[1727800341584,6.7334,148.52,148.47,6.7353]
[1727800341781,6.3378,148.54,148.43,20.0]
[1727800341782,13.0704,148.54,148.43,20.0]
[1727800341989,6.7328,148.53,148.47,6.7353]
[1727800342880,6.3378,148.54,148.48,6.7347]
[1727800343064,13.0701,148.54,148.48,6.7347]
[1727800343265,13.07,148.54,148.48,6.7344]
[1727800343595,13.07,148.54,148.49,6.7343]
[1727800343884,13.07,148.54,148.44,54.31700472]
[1727800343885,13.07,148.54,148.45,20.0]
[1727800344474,6.7326,148.53,148.48,6.7346]
[1727800344670,6.3378,148.54,148.44,23.776884]
[1727800344876,6.7339,148.51,148.45,6.7362]
[1727800345085,6.7331,148.52,148.46,6.7355]
[1727800345473,6.3378,148.54,148.44,6.7364]
[1727800345474,6.7345,148.49,148.44,6.7364]
[1727800345668,6.3378,148.54,148.44,6.7364]
[1727800345869,6.3378,148.54,148.41,20.0]
[1727800346087,6.7344,148.5,148.44,6.7366]
[1727800346272,6.7344,148.49,148.44,6.7366]
[1727800346467,6.7341,148.5,148.45,6.7358]
[1727800346690,6.3378,148.54,148.46,1.34690185]
[1727800346993,6.3378,148.54,148.41,20.0]
[1727800347297,6.7339,148.51,148.41,20.0]
[1727800347473,6.7339,148.51,148.46,6.7354]
[1727800348183,6.7357,148.47,148.42,6.7372]
[1727800348376,6.7348,148.49,148.43,6.737]
[1727800348565,6.7358,148.46,148.41,6.738]
[1727800349678,6.7357,148.47,148.42,6.7375]
[1727800349990,23.776884,148.5,148.41,6.738]
[1727800350170,23.776884,148.5,148.35,16.1378]
[1727800350171,6.7383,148.41,148.35,16.1378]
[1727800350371,23.776884,148.46,148.34,0.8465799]
[1727800350568,23.776884,148.44,148.35,16.8518]
[1727800350795,23.776884,148.44,148.35,23.5923]
[1727800351093,23.776884,148.44,148.34,0.8465799]
[1727800351597,23.776884,148.44,148.34,7.5877799]
[1727800351773,23.3418,148.45,148.34,17.6996799]
[1727800352098,6.5002,148.45,148.34,0.8465799]
[1727800352308,23.776884,148.44,148.34,0.8465799]
[1727800352668,16.844,148.43,148.34,0.8465799]
[1727800352992,23.776884,148.42,148.34,0.8465799]
[1727800354195,23.776884,148.41,148.34,0.8465799]
[1727800354884,23.776884,148.39,148.34,0.8465799]
[1727800355068,6.7408,148.35,148.34,0.8465799]
[1727800355269,6.7408,148.35,148.34,0.3465799]
[1727800355270,30.517684,148.35,148.34,0.3465799]
[1727800355478,6.7408,148.35,148.34,0.3465799]
[1727800356526,6.7408,148.35,148.24,6.7455]
[1727800356527,6.743,148.31,148.24,6.7455]
[1727800356701,6.7437,148.29,148.23,23.6117]
[1727800357387,6.7437,148.29,148.22,50.0179]
[1727800357388,6.7448,148.27,148.22,6.7467]
[1727800357592,40.630984,148.34,148.23,6.746]
[1727800357775,6.7443,148.28,148.21,16.867]
[1727800357970,11.024,148.31,148.21,16.867]
[1727800358175,27.8806,148.31,148.21,16.867]
[1727800358395,23.1939,148.35,148.24,6.7456]
[1727800358715,6.7442,148.28,148.23,6.7462]
[1727800358873,6.7435,148.29,148.23,6.7462]
[1727800359676,6.7431,148.3,148.24,16.8645]
[1727800359902,23.776884,148.34,148.25,6.7449]
[1727800360203,6.7433,148.3,148.25,6.7449]
[1727800360398,23.1939,148.35,148.24,16.8645]
[1727800360583,6.7421,148.33,148.25,1.34874719]
[1727800360783,6.3414,148.35,148.22,30.54012072]
[1727800360990,6.3414,148.35,148.21,16.8676]
[1727800360991,6.745,148.26,148.21,16.8676]
[1727800361185,6.7458,148.24,148.19,7.5945799]
[1727800361386,6.3414,148.35,148.19,7.5945799]
[1727800361387,6.549,148.32,148.19,0.8465799]
[1727800361577,2.0,148.33,148.07,0.5781023]
[1727800361578,6.549,148.2,148.07,0.5781023]
[1727800361788,16.8708,148.19,148.07,17.4612023]
[1727800361975,6.549,148.2,148.12,16.8779]
[1727800362177,6.526,148.25,148.07,31.11822302]
[1727800362393,6.7483,148.19,148.14,16.8748]
[1727800362595,6.7483,148.19,148.14,23.625]
[1727800362912,6.7481,148.19,148.14,16.8748]
[1727800363083,6.749,148.17,148.1,23.6318]
[1727800363272,23.776884,148.22,148.11,1.3501515]
[1727800363604,6.7479,148.2,148.12,6.751]
[1727800363772,6.7481,148.19,148.12,6.751]
[1727800363977,6.7487,148.18,148.11,6.7517]
[1727800364589,23.776884,148.22,148.09,16.8807]
[1727800364784,23.776884,148.22,148.13,6.7507]
[1727800364985,23.776884,148.22,148.09,16.8807]
[1727800365192,6.7486,148.18,148.11,6.7513]
[1727800365385,6.749,148.17,148.11,6.7513]
[1727800365588,23.776884,148.22,148.09,23.6329]
[1727800365882,6.7501,148.15,148.09,16.8807]
[1727800366204,6.7506,148.14,148.08,6.753]
[1727800366380,23.776884,148.19,148.09,6.7524]
[1727800366579,6.7505,148.14,148.07,7.3313023]
[1727800366984,6.7504,148.14,148.08,6.753]
[1727800367184,16.8731,148.17,148.07,0.5781023]
[1727800367382,6.7527,148.09,148.07,0.5781023]
[1727800367787,6.7531,148.08,148.07,0.5781023]
[1727800367995,16.8765,148.14,148.05,0.2]
[1727800367996,6.0295,148.14,148.05,0.2]
[1727800368310,6.0295,148.14,147.89,52.8465799]
[1727800368311,16.8924,148.0,147.89,0.8465799]
[1727800368602,6.7604,147.92,147.89,0.8465799]
[1727800369107,23.2844,148.01,147.89,0.8465799]
[1727800369403,43.776884,148.06,147.91,16.9018]
[1727800369596,43.776884,148.06,147.89,0.8465799]
[1727800369785,16.8899,148.02,147.89,0.8465799]
[1727800369991,16.8899,148.02,147.9,16.9027]
[1727800370180,6.7592,147.95,147.89,7.6081799]
[1727800370378,23.776884,147.98,147.89,0.8465799]
[1727800370697,6.7589,147.96,147.89,7.6082799]
[1727800370904,20.0,148.03,147.9,1.35210552]
[1727800371089,16.8917,148.01,147.89,17.7500799]
[1727800371279,6.7573,147.99,147.91,6.7604]
[1727800371599,6.7575,147.99,147.9,20.0]
[1727800371813,73.90825452,148.07,147.9,20.0]
[1727800372019,39.9776,148.13,147.92,30.54012072]
[1727800372309,40.11667964,148.13,147.98,6.7575]
[1727800372683,73.61617767,148.13,147.95,16.8971]
[1727800372889,16.8843,148.07,147.95,16.8971]
[1727800373085,6.7576,147.98,147.93,15.1669]
[1727800373297,20.0,148.03,147.93,15.1669]
[1727800373807,44.08264792,148.08,147.9,16.9027]
[1727800373808,20.0,148.07,147.9,16.9027]
[1727800373984,23.776884,148.04,147.9,23.6639]
[1727800374308,6.7599,147.93,147.89,0.8465799]
[1727800375103,20.0,147.97,147.89,0.8465799]
[1727800375306,20.0,147.95,147.89,0.8465799]
[1727800375496,6.7613,147.9,147.89,0.8465799]
[1727800375812,20.0,147.95,147.89,7.6081799]
[1727800376008,6.7585,147.97,147.89,17.7507799]
[1727800376319,20.0,148.0,147.89,17.7507799]
[1727800376484,6.7594,147.95,147.9,6.7613]
[1727800376694,6.7583,147.97,147.91,6.7608]
[1727800377000,20.0,147.98,147.89,0.8465799]
[1727800377200,16.8964,147.96,147.89,0.8465799]
[1727800377389,20.0,147.98,147.89,0.8465799]
[1727800377703,6.7595,147.94,147.89,7.6082799]
[1727800377911,6.7609,147.91,147.89,0.8465799]
[1727800378094,16.8964,147.96,147.89,0.8465799]
[1727800378286,6.7613,147.9,147.89,0.8465799]
[1727800378786,20.0,147.95,147.89,0.8465799]
[1727800378984,6.76,147.93,147.89,0.8465799]
[1727800379184,16.8963,147.97,147.89,0.8465799]
[1727800379185,43.776884,147.96,147.89,0.8465799]
[1727800379592,6.7609,147.91,147.89,0.8465799]
[1727800379795,6.7613,147.9,147.89,0.8465799]
[1727800379996,16.8992,147.94,147.89,0.8465799]
[1727800380214,0.13907964,148.0,147.89,0.8465799]
[1727800380390,16.8931,147.99,147.89,0.8465799]
[1727800380588,6.7613,147.9,147.89,0.8465799]
[1727800381524,6.7609,147.91,147.89,0.8465799]
[1727800381703,16.8957,147.97,147.89,0.8465799]
[1727800381704,6.7608,147.92,147.89,0.8465799]
[1727800381900,16.8957,147.97,147.89,0.8465799]
[1727800382506,6.7585,147.97,147.89,0.8465799]
[1727800382695,16.8913,148.01,147.89,0.8465799]
[1727800383428,44.23272756,148.03,147.89,0.8465799]
[1727800383429,6.7595,147.94,147.89,0.8465799]
[1727800383603,6.7609,147.91,147.89,0.8465799]
[1727800383800,33.7886,147.98,147.89,0.8465799]
[1727800384001,6.7608,147.92,147.89,0.8465799]
[1727800384425,6.7613,147.9,147.89,0.8465799]
[1727800384724,16.8983,147.95,147.89,0.8465799]
[1727800384725,6.7609,147.91,147.89,0.8465799]
[1727800384919,16.8983,147.95,147.89,0.8465799]
[1727800385093,3.47942599,148.44,147.89,0.8465799]
[1727800385094,8.6393,148.07,147.89,0.8465799]
[1727800385295,6.7576,147.98,147.92,6.7603]
[1727800385622,6.7586,147.96,147.91,16.902]
[1727800385793,6.7594,147.95,147.89,7.6078799]
[1727800386000,33.91607964,148.03,147.91,6.7608]
[1727800386216,6.7574,147.99,147.9,16.9027]
[1727800386416,10.45572756,148.03,147.9,23.664]
[1727800386600,16.8913,148.01,147.91,6.7604]
[1727800386808,16.8871,148.05,147.93,16.8987]
[1727800387131,6.7563,148.01,147.96,6.7584]
[1727800387310,27.20374792,148.05,147.93,16.8987]
[1727800387623,6.7566,148.01,147.94,6.7592]
[1727800387820,6.7558,148.03,147.92,16.1667]
[1727800388028,6.7564,148.01,147.96,23.6546]
[1727800388225,6.7564,148.01,147.96,16.8961]
[1727800388521,16.8854,148.06,147.92,33.067]
[1727800388721,16.889,148.03,147.92,33.067]
[1727800388898,6.7567,148.0,147.94,6.7594]
[1727800389099,6.7576,147.99,147.93,6.7598]
[1727800389302,16.8876,148.04,147.93,6.7597]
[1727800389608,16.8876,148.04,147.92,33.067]
[1727800389609,6.7567,148.0,147.92,33.067]
[1727800389810,6.7568,148.0,147.94,6.7594]
[1727800390007,16.8863,148.05,147.92,33.067]
[1727800390209,6.99932698,148.07,147.95,16.8974]
[1727800390504,33.7725,148.05,147.92,16.1667]
[1727800390728,6.7599,147.93,147.92,16.1667]
[1727800391105,16.8922,148.0,147.92,16.1667]
[1727800391511,6.7597,147.94,147.92,16.1667]
[1727800392021,6.7592,147.95,147.92,16.1667]
[1727800392207,6.7595,147.94,147.92,16.1667]
[1727800392525,6.7599,147.93,147.92,16.1667]
[1727800392826,33.7837,148.0,147.89,0.8465799]
[1727800392827,6.7613,147.9,147.89,0.8465799]
[1727800394007,50.538184,147.9,147.89,0.8465799]
[1727800394413,26.7613,147.9,147.89,0.8465799]
[1727800394628,50.538184,147.9,147.89,0.8465799]
[1727800395030,50.538184,147.9,147.89,7.99e-05]
[1727800395343,16.9064,147.88,147.77,0.5781023]
[1727800395509,16.9064,147.88,147.78,16.9169]
[1727800395510,23.776884,147.87,147.78,16.9169]
[1727800395708,16.9064,147.88,147.77,0.5781023]
[1727800395709,6.7651,147.82,147.77,0.5781023]
[1727800395935,6.7655,147.81,147.77,0.5781023]
[1727800396225,6.7649,147.83,147.77,0.5781023]
[1727800396430,6.7659,147.8,147.77,0.5781023]
[1727800396605,6.7668,147.78,147.77,0.5781023]
[1727800396810,6.7681,147.75,147.74,0.8465799]
[1727800397226,20.0,147.77,147.65,16.9318]
[1727800397436,56.80432765,147.85,147.62,15.3439]
[1727800397437,10.82220348,147.81,147.68,16.9279]
[1727800397610,20.0,147.8,147.68,16.9279]
[1727800397934,10.82220348,147.85,147.69,50.031484]
[1727800398228,16.9081,147.86,147.74,16.9208]
[1727800398409,51.30218312,147.9,147.66,16.9303]
[1727800398410,16.9147,147.81,147.66,16.9303]
[1727800398611,6.7669,147.78,147.71,6.7698]
[1727800398832,33.8235,147.83,147.71,6.7698]
[1727800399014,6.7661,147.8,147.7,16.926]
[1727800399326,6.7669,147.78,147.65,20.0]
[1727800399529,6.7672,147.78,147.68,16.9276]
[1727800399731,6.7668,147.78,147.71,6.7698]
[1727800399950,7.00197657,147.84,147.71,6.7698]
[1727800399951,6.7663,147.79,147.73,6.7689]
[1727800400153,23.776884,147.83,147.71,16.9243]
[1727800400516,23.776884,147.83,147.72,6.7694]
[1727800400735,23.776884,147.83,147.71,16.9243]
[1727800401041,6.7654,147.82,147.74,16.921]
[1727800401213,7.00197657,147.84,147.74,16.921]
[1727800401214,7.00197657,147.84,147.77,6.7672]
[1727800401560,6.7661,147.8,147.73,22.1854]
[1727800401728,7.00197657,147.84,147.73,15.4165]
[1727800401925,62.82220348,147.89,147.73,15.4165]
[1727800401926,10.82220348,147.89,147.73,15.4165]
[1727800402123,10.82220348,147.89,147.76,16.919]
[1727800402124,7.0008986,147.87,147.76,16.919]
[1727800402322,6.7646,147.83,147.76,23.6863]
[1727800402512,6.7634,147.86,147.8,6.7658]
[1727800402710,7.00005793,147.88,147.76,23.6863]
[1727800402913,6.7644,147.84,147.76,16.919]
[1727800403126,6.7629,147.87,147.8,6.7657]
[1727800403443,7.00005793,147.88,147.73,21.9619]
[1727800403734,10.82220348,147.87,147.73,21.9619]
[1727800403930,6.765,147.82,147.76,6.7673]
[1727800404241,6.7669,147.78,147.73,21.9619]
[1727800404419,6.7658,147.81,147.75,6.7681]